[Event "Swedish Chess Championship 2019: Klass 1"]
[Site "Stiga Sports Arena, Arenatorget 1, Eskilstuna, Sweden"]
[Date "2019.07.13"]
[Round "6.8"]
[White "Carnstam, Tomas"]
[Black "Thollin, Robert"]
[Result "1/2-1/2"]
[TimeControl "90 minutes for 40 moves + 30 minutes for the rest of the game + 30 seconds per move from move one"]
[WhiteFideId "1707221"]
[BlackFideId "1701630"]
[WhiteElo "1967"]
[BlackElo "1983"]

1. c4 {[%clk 01:30:48]} {[%emt 00:00:19]} c5 {[%clk 01:29:36]} {[%emt
00:03:57]} 2. Nc3 {[%clk 01:30:20]} {[%emt 00:03:13]} Nf6 {[%clk 01:29:58]}
{[%emt 00:00:29]} 3. e3 {[%clk 01:29:12]} {[%emt 00:05:59]} g6 {[%clk
01:28:07]} {[%emt 00:08:04]} 4. d4 {[%clk 01:29:03]} {[%emt 00:02:21]} cxd4
{[%clk 01:28:28]} {[%emt 00:00:29]} 5. exd4 {[%clk 01:29:28]} {[%emt 00:00:21]}
Bg7 {[%clk 01:28:46]} {[%emt 00:00:49]} 6. Nf3 {[%clk 01:28:29]} O-O {[%clk
01:28:38]} 7. Bd3 {[%clk 01:24:13]} d5 {[%clk 01:20:40]} 8. cxd5 {[%clk
01:20:01]} {[%emt 00:01:50]} Nxd5 {[%clk 01:20:00]} {[%emt 00:01:09]} 9. O-O
{[%clk 01:05:00]} {[%emt 00:15:30]} Nc6 {[%clk 01:09:36]} {[%emt 00:10:54]} 10.
Be3 {[%clk 00:50:28]} {[%emt 00:15:02]} Bg4 {[%clk 01:00:51]} {[%emt 00:09:15]}
11. h3 {[%clk 00:50:09]} {[%emt 00:00:49]} Bxf3 {[%clk 00:58:52]} {[%emt
00:02:30]} 12. Qxf3 {[%clk 00:50:36]} {[%emt 00:00:03]} Ndb4 {[%clk 00:50:19]}
{[%emt 00:09:03]} 13. Be4 {[%clk 00:47:04]} {[%emt 00:04:01]} f5 {[%clk
00:44:20]} {[%emt 00:06:29]} 14. Bxc6 {[%clk 00:46:18]} {[%emt 00:01:17]} Nxc6
{[%clk 00:40:26]} {[%emt 00:04:24]} 15. d5 {[%clk 00:44:34]} Ne5 {[%clk
00:39:02]} {[%emt 00:04:42]} 16. Qd1 {[%clk 00:39:58]} Nc4 {[%clk 00:35:45]}
{[%emt 00:08:18]} 17. Qb3 {[%clk 00:37:34]} Nxe3 {[%clk 00:33:45]} {[%emt
00:05:25]} 18. fxe3 {[%clk 00:37:53]} Bxc3 {[%clk 00:29:22]} {[%emt 00:05:04]}
19. bxc3 {[%clk 00:37:12]} b6 {[%clk 00:27:14]} {[%emt 00:03:49]} 20. c4 {[%clk
00:29:26]} Qd6 {[%clk 00:25:50]} {[%emt 00:10:09]} 21. Qd3 {[%clk 00:19:23]}
Rac8 {[%clk 00:24:18]} {[%emt 00:12:34]} 22. Rad1 {[%clk 00:16:17]} Rf6 {[%clk
00:16:00]} {[%emt 00:12:25]} 23. Rf4 {[%clk 00:14:31]} Qc5 {[%clk 00:14:04]}
{[%emt 00:04:42]} 24. Kh1 {[%clk 00:14:18]} Kg7 {[%clk 00:14:20]} {[%emt
00:00:58]} 25. Rdf1 {[%clk 00:11:41]} e5 {[%clk 00:12:06]} {[%emt 00:05:51]} 26.
dxe6 {[%clk 00:11:38]} Rxe6 {[%clk 00:12:27]} {[%emt 00:00:41]} 27. e4 {[%clk
00:09:11]} Qxc4 {[%clk 00:11:09]} {[%emt 00:04:46]} 28. Qd7+ {[%clk 00:09:22]}
Kh6 {[%clk 00:05:56]} {[%emt 00:06:01]} 29. exf5 {[%clk 00:08:18]} Re4 {[%clk
00:05:32]} {[%emt 00:02:28]} 30. Qxc8 {[%clk 00:02:18]} Qxc8 {[%clk 00:05:20]}
{[%emt 00:07:13]} 31. Rxe4 {[%clk 00:02:41]} gxf5 {[%clk 00:05:08]} {[%emt
00:00:48]} 1/2-1/2

[Event "Swedish Chess Championship 2019: Klass 1"]
[Site "Stiga Sports Arena, Arenatorget 1, Eskilstuna, Sweden"]
[Date "2019.07.14"]
[Round "7.3"]
[White "Forsberg, Andre"]
[Black "Lyngsjo, Hakan"]
[Result "1/2-1/2"]
[TimeControl "90 minutes for 40 moves + 30 minutes for the rest of the game + 30 seconds per move from move one"]
[WhiteFideId "1724193"]
[BlackFideId "1701649"]
[WhiteElo "1982"]
[BlackElo "2029"]

1. e4 {[%clk 01:29:27]} {[%emt 00:01:36]} Nf6 {[%clk 01:30:39]} {[%emt
00:00:41]} 2. e5 {[%clk 01:29:35]} {[%emt 00:00:54]} Nd5 {[%clk 01:30:54]}
{[%emt 00:00:50]} 3. d4 {[%clk 01:29:38]} d6 {[%clk 01:30:56]} {[%emt
00:00:07]} 4. Nf3 {[%clk 01:29:41]} dxe5 {[%clk 01:30:50]} {[%emt 00:00:21]} 5.
Nxe5 {[%clk 01:29:45]} {[%emt 00:00:25]} Nd7 {[%clk 01:28:52]} {[%emt
00:02:28]} 6. Nxf7 {[%clk 01:27:40]} {[%emt 00:02:35]} Kxf7 {[%clk 01:29:08]}
{[%emt 00:00:14]} 7. Qh5+ {[%clk 01:27:59]} {[%emt 00:00:12]} Ke6 {[%clk
01:29:05]} {[%emt 00:00:33]} 8. Qg4+ {[%clk 01:28:00]} {[%emt 00:00:29]} Kf7
{[%clk 01:27:58]} {[%emt 00:01:37]} 9. Qh5+ {[%clk 01:27:37]} {[%emt 00:00:53]}
Ke6 {[%clk 01:28:21]} {[%emt 00:00:07]} 10. Qg4+ {[%clk 01:28:01]} {[%emt
00:00:07]} Kf7 {[%clk 01:28:41]} {[%emt 00:00:10]} 1/2-1/2

[Event "Swedish Chess Championship 2019: Klass 1"]
[Site "Stiga Sports Arena, Arenatorget 1, Eskilstuna, Sweden"]
[Date "2019.07.14"]
[Round "7.5"]
[White "Willinger, Tim"]
[Black "Muganlinskij, Hussein"]
[Result "1/2-1/2"]
[TimeControl "90 minutes for 40 moves + 30 minutes for the rest of the game + 30 seconds per move from move one"]
[WhiteFideId "1739336"]
[BlackFideId "1722581"]
[WhiteElo "2053"]
[BlackElo "2022"]

1. d4 {[%clk 01:31:00]} {[%emt 00:03:30]} d5 {[%clk 01:30:52]} {[%emt
00:00:09]} 2. c4 {[%clk 01:31:26]} {[%emt 00:00:03]} c6 {[%clk 01:31:20]}
{[%emt 00:00:03]} 3. Nc3 {[%clk 01:31:52]} {[%emt 00:00:03]} Nf6 {[%clk
01:31:47]} {[%emt 00:00:03]} 4. cxd5 {[%clk 01:32:17]} {[%emt 00:00:05]} cxd5
{[%clk 01:32:04]} {[%emt 00:00:12]} 5. Bf4 {[%clk 01:32:42]} {[%emt 00:00:05]}
Nc6 {[%clk 01:32:13]} {[%emt 00:00:21]} 6. e3 {[%clk 01:33:03]} {[%emt
00:00:09]} g6 {[%clk 01:31:21]} {[%emt 00:02:46]} 7. Bd3 {[%clk 01:33:06]} Bg7
{[%clk 01:31:33]} 8. h3 {[%clk 01:33:21]} {[%emt 00:00:07]} O-O {[%clk
01:31:54]} 9. Nf3 {[%clk 01:33:46]} Nd7 {[%clk 01:30:27]} {[%emt 00:01:40]} 10.
Be2 {[%clk 01:29:11]} {[%emt 00:05:06]} e5 {[%clk 01:21:05]} {[%emt 00:09:53]}
11. dxe5 {[%clk 01:29:26]} {[%emt 00:00:15]} Ndxe5 {[%clk 01:21:29]} {[%emt
00:00:04]} 12. O-O {[%clk 01:20:55]} {[%emt 00:09:03]} Nc4 {[%clk 01:18:01]}
{[%emt 00:03:57]} 13. Rc1 {[%clk 01:12:39]} {[%emt 00:08:46]} Nxb2 {[%clk
01:14:05]} {[%emt 00:04:26]} 14. Qxd5 {[%clk 01:07:54]} {[%emt 00:05:15]} Be6
{[%clk 01:08:30]} {[%emt 00:06:05]} 15. Qb5 {[%clk 01:04:07]} {[%emt 00:04:17]}
Qb6 {[%clk 01:08:38]} {[%emt 00:00:22]} 16. Ng5 {[%clk 00:53:18]} {[%emt
00:11:19]} Qxb5 {[%clk 01:03:05]} {[%emt 00:06:03]} 17. Bxb5 {[%clk 00:49:41]}
{[%emt 00:04:08]} Bc4 {[%clk 01:02:18]} {[%emt 00:01:17]} 18. Bxc4 {[%clk
00:49:13]} {[%emt 00:00:58]} Nxc4 {[%clk 01:02:41]} {[%emt 00:00:07]} 19. Nce4
{[%clk 00:42:45]} {[%emt 00:06:57]} N6e5 {[%clk 00:55:32]} {[%emt 00:07:39]} 20.
Bxe5 {[%clk 00:34:14]} {[%emt 00:09:02]} Nxe5 {[%emt 00:00:10]} 21. Rc7 h6 22.
Nf3 Nxf3+ 23. gxf3 b5 24. Rd1 Rfc8 25. Rb7 Rcb8 26. Rdd7 Rxb7 27. Rxb7 a6 28.
Nc5 b4 29. f4 a5 30. Nd7 Bc3 31. Nb6 Rd8 32. Ra7 Kg7 33. Nd7 a4 34. Nc5 Rd1+ 35.
Kg2 a3 36. Ne4 Ra1 37. Nd6 Rxa2 38. Rxf7+ Kg8 39. Rb7 Rd2 40. Nc4 a2 41. Ra7
Rd1 42. Rxa2 b3 43. Ra8+ Kg7 44. Rb8 b2 45. Rb7+ Kg8 46. Rb8+ Kg7 47. Rb7+
{[%clk 00:34:22]} Kg8 {[%clk 00:48:24]} {times in the PGN file are wrong}
1/2-1/2